Cogmind - Beta 11.1 @@@ ROGUE MODE // 2022.06.25 @ 10:27:53 Player: Haldron Result: Destroyed by S-10 Pest with Light Assault Rifle Performance ------------- Evolutions (0) 0 Regions Visited (2) 400 Robots Destroyed (17) 85 Value Destroyed (252) 252 Prototype IDs (0) 0 Alien Tech Used (0) 0 Bonus (0) 0 TOTAL SCORE: 737 Bonus ------- None Cogmind --------- Core Integrity 0/250 Matter 201/300 Energy 250/250 System Corruption 0% Temperature Cool (0) Movement Rolling (115) Ox1 Location -10/Mines Parts ------- > --- POWER (1) -------- Ion Engine > --- PROPULSION (2) --- Light Treads Compact Wheel > --- UTILITY (2) ------ Large Storage Unit Structural Scanner > --- WEAPON (2) ------- Assault Rifle > --- INVENTORY (15) --- Light Ion Engine Compact Wheel Compact Wheel Small Storage Unit Structural Scanner Signal Interpreter Medium Laser Mining Laser Peak State ------------ > --- POWER ------------ Ion Engine > --- PROPULSION ------- Light Treads Light Treads > --- UTILITY ---------- Large Storage Unit Structural Scanner > --- WEAPON ----------- Medium Laser Assault Rifle > --- INVENTORY -------- Ion Engine Light Ion Engine Compact Wheel Compact Wheel Compact Wheel Small Storage Unit Structural Scanner Signal Interpreter Medium Laser Mining Laser [Rating: 8] Favorites ----------- Power Ion Engine Engine Ion Engine Propulsion Light Treads Treads Light Treads Wheel Compact Wheel Utility Large Storage Unit Device Structural Scanner Storage Large Storage Unit Weapon Medium Laser Energy Gun Medium Laser Ballistic Gun Assault Rifle Special Weapon Mining Laser Build | -11 -10 -10 ------- Run | Scr Mat Min Slots Evolved . | . . . Power . | . . . Propulsion . | . . . Utility . | . . . Weapon . | . . . Parts Attached 19 | 7 4 8 Power 2 | 1 . 1 Engine 2 | 1 . 1 Core . | . . . Reactor . | . . . Propulsion 5 | 2 1 2 Treads 3 | 1 1 1 Leg . | . . . Wheel 2 | 1 . 1 Hover . | . . . Flight . | . . . Utility 4 | 2 2 . Device 2 | 1 1 . Storage 2 | 1 1 . Processor . | . . . Hackware . | . . . Protection . | . . . Artifact . | . . . Weapon 8 | 2 1 5 Energy Gun 3 | 2 . 1 Energy Cannon . | . . . Ballistic Gun 3 | . 1 2 Ballistic Cannon . | . . . Launcher . | . . . Special Weapon 2 | . . 2 Impact Weapon . | . . . Slashing Weapon . | . . . Piercing Weapon . | . . . Special Melee Weapon . | . . . Unidentified Prototypes . | . . . Parts Lost 5 | . 2 3 Power 1 | . . 1 Propulsion 2 | . 1 1 Utility 1 | . 1 . Weapon 1 | . . 1 Highest Loss Streak 2 | . 1 2 To Critical Strikes . | . . . Average Slot Usage (%) 93 | . 91 95 Engine 13 | . 14 12 Treads 23 | . 24 19 Wheel 3 | . 2 6 Device 9 | . 6 14 Storage 14 | . 14 14 Energy Gun 16 | . 18 13 Ballistic Gun 8 | . 9 7 Special Weapon 2 | . . 6 Naked Turns . | . . . Heaviest Build 30 | 15 30 30 Greatest Support 40 | 16 40 40 Greatest Overweight (x) 1 | . 1 1 Average Overweight (x) . | . . . Largest Inventory Capacity 15 | 8 15 15 Average Capacity 13 | 7 14 15 Most Carried 10 | 6 10 10 Average Carried 7 | 3 7 9 Final Capacity 15 | 8 15 15 Final Carried 10 | 6 10 8 Class Distribution -------------------- 100% | Mutant Dominant Class ---------------- Mutant | -10/Materials Mutant | -10/Mines Resources | -11 -10 -10 ----------- Run | Scr Mat Min Matter Collected 331 | 270 48 13 Remotely . | . . . Salvage Created 495 | 109 340 46 Parts 29 | 6 18 5 Haulers Intercepted . | . . . Recyclers Shooed 3 | . 3 . Parts Field Recycled . | . . . Retrieved Matter . | . . . Parts Self-Destructed . | . . . Prevented . | . . . Kills | -11 -10 -10 ------- Run | Scr Mat Min Combat Hostiles Destroyed 9 | . 6 3 Guns 9 | . 6 3 Classes Destroyed 7 | 2 4 1 Tunneler 3 | 3 . . Recycler 3 | 1 2 . Operator 1 | . 1 . Watcher 2 | . 2 . Swarmer 5 | . 3 2 Grunt 3 | . 3 . Assembled 1 | . . 1 Best Kill Streak 5 | 2 5 2 Combat Bots Only 3 | . 3 2 Max Kills in Single Turn 1 | 1 1 1 Gunslinging . | . . . Exploded . | . . . Melee . | . . . Uniques/NPCs Destroyed . | . . . Combat | -11 -10 -10 -------- Run | Scr Mat Min Damage Taken 750 | . 345 405 Core 255 | . 104 151 Absorbed by Shields . | . . . Core Remaining (%) 100 | 100 . . Volleys Fired 77 | 10 34 33 Largest 2 | 2 2 2 Hottest 150 | 100 100 150 Shots Fired 129 | 20 68 41 Gun 110 | 20 68 22 Cannon . | . . . Launcher . | . . . Special 19 | . . 19 Kinetic 24 | . 10 14 Thermal 105 | 20 58 27 Explosive . | . . . Electromagnetic . | . . . Robot Hit Streak 9 | 3 9 4 Robot Miss Streak 3 | 3 3 2 Penetration Max . | . . . Secondary Targets . | . . . Shots Hit Robots 62 | 12 39 11 Core Hits 30 | 5 21 4 Critical Kills . | . . . Critical Parts Destroyed . | . . . Critical Strikes 7 | 2 4 1 Burn 7 | 2 4 1 Melee Attacks . | . . . Impact . | . . . Slashing . | . . . Piercing . | . . . Sneak Attacks . | . . . Combat Hostiles . | . . . Follow-up Attacks . | . . . Damage Inflicted 836 | 163 530 143 Guns 834 | 163 528 143 Cannons . | . . . Explosions . | . . . Melee . | . . . Ramming 2 | . 2 . Kinetic 174 | . 93 81 Thermal 660 | 163 435 62 Explosive . | . . . Electromagnetic . | . . . Impact . | . . . Slashing . | . . . Piercing . | . . . Highest Corruption . | . . . Average Corruption . | . . . Corruption Purged . | . . . Corruption Blocked . | . . . Overload Shots . | . . . Overflow Damage . | . . . Projectiles . | . . . Explosions . | . . . Melee . | . . . Knockbacks . | . . . Impact . | . . . Kinetic . | . . . Secondary . | . . . Self-Inflicted Damage . | . . . Shots . | . . . Rammed 2 | . 2 . Targets Rammed 2 | . 2 . Kicked . | . . . Crushed . | . . . Highest Temperature 422 | 211 422 91 Average Temperature 111 | 98 166 39 Received Heat Transfer 126 | . 126 . Effects 1 | . 1 . Energy Bleed 1 | . 1 . Siege Activations . | . . . Robots Corrupted . | . . . Combat Hostiles . | . . . Parts Fried . | . . . Impact Corruptions . | . . . Robots Melted . | . . . Combat Hostiles . | . . . Parts Melted 7 | 3 4 . Heat Transferred 2479 | 629 1591 259 Parts Sabotaged . | . . . Parts Stolen . | . . . Parts Stripped . | . . . Power Chain Reactions . | . . . Missiles Intercepted . | . . . Alert | -11 -10 -10 ------- Run | Scr Mat Min Peak Influence 220 | 20 220 46 Initial 13 | . 13 7 Average 66 | 9 107 7 Maximum Alert Level 1 | . 1 . Low Security (%) 95 | 100 92 100 Level 1 4 | . 7 . Level 2 . | . . . Level 3 . | . . . Level 4 . | . . . Level 5 . | . . . High Security . | . . . Max Security . | . . . Squads Dispatched 1 | . 1 . Investigation . | . . . Extermination . | . . . Reinforcement 1 | . 1 . Assault . | . . . Garrison . | . . . Intercept . | . . . Searches Triggered . | . . . Construction Impeded . | . . . Haulers Reinforced . | . . . Active Scanning Responses . | . . . Cargo Convoy Interrupts . | . . . Stealth | -11 -10 -10 --------- Run | Scr Mat Min Distress Signals 1 | . 1 . Communications Jammed . | . . . Distress Signals . | . . . Times Spotted 17 | . 13 4 Peak Tracking Total 5 | . 5 3 Tactical Retreats . | . . . Traps | -11 -10 -10 ------- Run | Scr Mat Min Traps Triggered . | . . . Indirectly . | . . . Trap Hack Attempts . | . . . Triggered . | . . . Disarmed . | . . . Reprogrammed . | . . . Reused . | . . . Traps Extracted . | . . . Installed . | . . . Triggered . | . . . Machines | -11 -10 -10 ---------- Run | Scr Mat Min Machines Disabled . | . . . Max in Single Turn . | . . . Machines Sabotaged . | . . . Garrisons Compromised . | . . . Overloaded Fab Kills . | . . . Hacking | -11 -10 -10 --------- Run | Scr Mat Min Machines Accessed . | . . . Terminals . | . . . Fabricators . | . . . Repair Stations . | . . . Recycling Units . | . . . Scanalyzers . | . . . Garrison Access . | . . . Total Hacks . | . . . Successful . | . . . Failed . | . . . Catastrophic . | . . . Database Lockouts . | . . . Manual . | . . . Terminals . | . . . Fabricators . | . . . Repair Stations . | . . . Recycling Units . | . . . Scanalyzers . | . . . Garrison Access . | . . . Terminal Hacks . | . . . Fabricator Hacks . | . . . Repair Station Hacks . | . . . Recycling Unit Hacks . | . . . Scanalyzer . | . . . Garrison Access Hacks . | . . . Unauthorized Hacks . | . . . Terminals . | . . . Fabricators . | . . . Repair Stations . | . . . Recycling Units . | . . . Scanalyzers . | . . . Garrison Access . | . . . Data Cores Recovered . | . . . Used . | . . . Hacking Detections . | . . . Full Trace Events . | . . . Feedback Events . | . . . Feedback Blocked . | . . . Robot Schematics Acquired . | . . . Robots Built . | . . . Authchips . | . . . Time . | . . . Total Robot Build Rating . | . . . Part Schematics Acquired . | . . . Parts Built . | . . . Authchips . | . . . Time . | . . . Total Part Build Rating . | . . . Parts Repaired . | . . . Time . | . . . Parts Recycled . | . . . Recycled Matter . | . . . Retrieved Matter . | . . . Retrieved Components . | . . . Parts Scanalyzed . | . . . Part Schematics Acquired . | . . . Parts Damaged . | . . . Bothacking | -11 -10 -10 ------------ Run | Scr Mat Min Used RIF Installer . | . . . Robots Hacked . | . . . Non-combat . | . . . Combat . | . . . Robot Hacks Applied . | . . . Relay Couplers Released . | . . . Fabnet Peak Effective % . | . . . Robots Rewired . | . . . Allies Hacked . | . . . Hacks Repelled . | . . . Allies | -11 -10 -10 -------- Run | Scr Mat Min Total Allies . | . . . Largest Group . | . . . Highest-Rated Group . | . . . Highest-Rated Ally . | . . . Total Orders . | . . . Ally Attacks . | . . . Total Damage . | . . . Kills . | . . . Allies Corrupted . | . . . Allies Melted . | . . . Intel | -11 -10 -10 ------- Run | Scr Mat Min Robot Analysis Total . | . . . Derelict Logs Recovered 1 | . . 1 Drone Launches . | . . . Drone Recoveries . | . . . Exploration | -11 -10 -10 ------------- Run | Scr Mat Min Turns Passed 846 | 108 498 240 Spaces Moved 373 | 63 238 72 Core 1 | 1 . . Treads 242 | . 196 46 Legs . | . . . Wheels 130 | 62 42 26 Hover . | . . . Flight . | . . . Fastest Speed 50 | 50 100 115 Average Speed 141 | 99 151 144 Slowest Speed 240 | 100 160 240 Overloaded Moves . | . . . Propulsion Burnouts . | . . . Robots Hopped . | . . . Cave-ins Triggered . | . . . Exploration Rate (%) 25 | 4 45 27 Regions Visited 2 Branch Regions 1 Pre-discovered Areas 1 | . . 1 Known Exits Taken . | . . . Unknown Exits Taken 2 | 1 1 . Scrap Searched . | . . . Spaces Dug . | . . . Terrain Destroyed 2 | . . 2 Melee . | . . . Projectile 2 | . . 2 AOE . | . . . Terrain Rammed . | . . . Walls Destroyed . | . . . Machines Disabled . | . . . Actions | -11 -10 -10 --------- Run | Scr Mat Min Total 515 | 85 305 125 Wait 36 | . 24 12 Move 371 | 62 237 72 Hop . | . . . Pick Up 10 | 6 4 . Fast Attach 9 | 7 1 1 Attach 3 | . 1 2 Detach . | . . . Swap 7 | . 2 5 Drop . | . . . Fire 77 | 10 34 33 Melee . | . . . Ram . | . . . Kick . | . . . Crush 2 | . 2 . Escape Stasis . | . . . Rewire . | . . . Trap . | . . . Miscellaneous . | . . . Route ------- -11/Scrapyard -10/Materials (discovered 2 exits: [*Mat] / [*Min]) -10/Mines History --------- Turn | Location | Event 7 | -11/Scrapyard | Discovered new exit (range 16) 109 | -11/Scrapyard | Entered Materials 307 | -10/Materials | Build established: Mutant 311 | -10/Materials | Discovered new exit (range 15) 395 | -10/Materials | Discovered new exit (range 14) 607 | -10/Materials | Entered Mines 655 | -10/Mines | Met a Derelict bent on vengeance 676 | -10/Mines | Excavation squad dispatched 676 | -10/Mines | A large section of the Mines collapsed 706 | -10/Mines | Core integrity fell below 50% 723 | -10/Mines | Core integrity fell below 20% 824 | -10/Mines | Learned location of Zion (-6) 847 | -10/Mines | Destroyed by S-10 Pest with Light Assault Rifle Last Messages --------------- 00559_ R-06 Scavenger inserts Signal Interpreter into recycling unit. 00562_ R-06 Scavenger inserts Sml. Storage Unit into recycling unit. 00563_ Recycling unit begins recycling process. LOCATION=UNKNOWN GOAL=ESCAPE 00676_ ALERT: Suspicious cave-in, suspected derelict activity in mines. Dispatching escorted excavation squad. 00707_ Lgt. Treads severed. 00715_ Ion Engine destroyed. 00717_ Lgt. Treads destroyed. 00720_ Destroyed Asb. Hover Unit. 00723_ as-85927 destroyed. 00726_ Acquired Lgt. Treads. 00728_ Acquired 13 matter. 00824_ Acquired derelict log, extracted data. World map updated: -6/Zion. 00830_ S-10 Pest suffers critical hit (Burn). 00830_ S-10 Pest destroyed. 00833_ Med. Laser destroyed. 00835_ S-10 Pest destroyed. Map ----- +----------------------------------------------------+ | ?????????????????????????????????????????? | | ?????????????????????????????????????????? | | ?????????????????????????????????????????? | | ?????????????????????????????????????????? | | ?????????????????????????????????????????? | | ?????????????????????????????????????????? | | ?????????????????????????????????????????? | | ?????????????????????????????????????????? | | ?????????????????????????????????????????? | | ?????????????????????????????????????????? | | ?????????????????????????????????????????? | | ?????????????????????????????????????????? | | ?????????????????????????????????????????? | | ?????????????????????????????????????????? | | ?????????????????????????????????????????? | | ?????????????????????????????????????????? | | ?????????????????????????????????????????? | | ?????????????????????????????????????????? | | ???????????????????###???????????????????? | | ??????????????????####???????????????????? | | ??????????????????### ???????????????????? | | ?????????????####### ??????????????????? | | ?????????????####### ######### ##????? | | ???????????? ########## ##????? | | ??????????????????## %=s* ##????? | | ??????????????????### ##@###########????? | | ??????????????????#######[##########?????? | | ???????????????????????## ##?????????????? | | ???????????????????????## ##?????????????? | | ???????????????????????## ##?????????????? | | ???????????????????????## ##?????????????? | | ???????????????????????## ##?????????????? | | ???????????????????????## ##?????????????? | | ???????????????????????## ##?????????????? | | ???????????????????????## ###????????????? | | ???????????????????????## ####???????????? | | ?????#####?????????????## ###???????????? | | ????#####?????????????#### ###??????????? | | ???? ##?????????????###" ####?????????? | | #????## ##??????????????##" #####????????? | | #????## ##??????????????### #####????????? | | ####### ###???????????##### ## ##????????? | | ####### ####?????????##### "## ##????????? | | ### ####???????### ## ######????????? | | #####???####"### #####?????????? | | """ ###########"### "###??????????? | | """ ########### # ###???????????? | | """ "# "###???????????? | | #######"########???????????? | | ## #################???????????? | +----------------------------------------------------+ Best States ------------- Heat Dissipation 25 Energy Generation 10 Energy Capacity 250 Matter Stores 300 Matter Capacity 300 Sight Range 16 Terrain Scan Density 10 Evasion (%) 40 Recoil Reduction 2 Item Schematics ----------------- None Robot Schematics ------------------ None Fabricated ------------ Nothing Alien Tech Used ----------------- None Achievements -------------- None Challenges ------------ None Game ------ Seed EtherialAssaultDriver Manual? 0 Play Time 00:08:46 Cumulative 118.8 hours Start 2022.06.25 @ 10:10:12 End 2022.06.25 @ 10:27:53 Sessions 1 Manual Loads 0 Difficulty Rogue Special Mode None Game No. 24 Rogue 19 Adventurer 4 Explorer 1 Win Type - Total 2 Types 1/0/1/0/0/0/0/0/0 Lore% 33 Gallery% 50 Achievement% 35 Wizard Run 0 Options --------- ASCII 0 Keyboard 0 Movement Mouse Keybinds 0 Fullscreen 1 Font 18/SmallcapsGlow Map View 76x50 Tactical HUD 1 Map Filters NONE Filters NONE Steam 1 RUN: eeec3c15-aac1-40c8-b00b-8a981648d450